Cogmind - Beta 10.2 @@@ ROGUE MODE // 2021.10.27 @ 19:27:42 Player: SURFACESEEKER Result: Destroyed by S-10 Pest with Light Assault Rifle Performance ------------- Evolutions (1) 500 Regions Visited (4) 800 Robots Destroyed (16) 80 Value Destroyed (256) 256 Prototype IDs (0) 0 Alien Tech Used (0) 0 Bonus (0) 0 TOTAL SCORE: 1636 Bonus ------- None Cogmind --------- Core Integrity 0/400 Matter 300/300 Energy 99/100 System Corruption 1% Temperature Cool (0) Movement Core (100) Ox1 Location -9/Mines Parts ------- > --- POWER (1) -------- (None) > --- PROPULSION (2) --- (None) > --- UTILITY (4) ------ Small Storage Unit Seismic Analyzer > --- WEAPON (2) ------- (None) > --- INVENTORY (6) ---- Light Ion Engine Peak State ------------ > --- POWER ------------ Ion Engine > --- PROPULSION ------- Aluminum Leg Aluminum Leg > --- UTILITY ---------- Small Storage Unit Seismic Analyzer Core Shielding > --- WEAPON ----------- Particle Gun Light Assault Rifle > --- INVENTORY -------- Light Ion Engine Aluminum Leg Aluminum Leg [Rating: 9] Favorites ----------- Power Ion Engine Engine Ion Engine Propulsion Aluminum Leg Leg Aluminum Leg Utility Seismic Analyzer Storage Small Storage Unit Processor Seismic Analyzer Protection Core Shielding Weapon Assault Rifle Energy Gun Medium Laser Ballistic Gun Assault Rifle Build | -11 -10 -10 -9 -9 ------- Run | Scr Mat Min Mat Min Slots Evolved 2 | . . . 2 . Power . | . . . . . Propulsion . | . . . . . Utility 2 | . . . 2 . Weapon . | . . . . . Parts Attached 14 | 6 1 3 4 . Power 1 | 1 . . . . Engine 1 | 1 . . . . Core . | . . . . . Reactor . | . . . . . Propulsion 5 | 2 1 . 2 . Treads . | . . . . . Leg 5 | 2 1 . 2 . Wheel . | . . . . . Hover . | . . . . . Flight . | . . . . . Utility 3 | 1 . 1 1 . Device . | . . . . . Storage 1 | . . . 1 . Processor 1 | 1 . . . . Hackware . | . . . . . Protection 1 | . . 1 . . Artifact . | . . . . . Weapon 5 | 2 . 2 1 . Energy Gun 3 | 1 . 2 . . Energy Cannon . | . . . . . Ballistic Gun 2 | 1 . . 1 . Ballistic Cannon . | . . . . . Launcher . | . . . . . Special Weapon . | . . . . . Impact Weapon . | . . . . . Slashing Weapon . | . . . . . Piercing Weapon . | . . . . . Special Melee Weapon . | . . . . . Unidentified Prototypes . | . . . . . Parts Lost 11 | . 2 1 3 5 Power 1 | . . . . 1 Propulsion 5 | . 1 . 2 2 Utility 1 | . . . . 1 Weapon 4 | . 1 1 1 1 Highest Loss Streak 5 | . 2 1 3 5 Average Slot Usage (%) 73 | . 81 82 70 28 Engine 11 | . 14 14 11 . Leg 23 | . 28 28 21 4 Storage 2 | . . . 4 11 Processor 12 | . 14 14 11 11 Protection 3 | . . . 11 1 Energy Gun 10 | . 10 13 8 . Ballistic Gun 8 | . 14 10 4 . Naked Turns . | . . . . . Heaviest Build 14 | 9 9 10 14 5 Greatest Support 20 | 20 20 20 20 20 Greatest Overweight (x) 1 | . . . . 1 Average Overweight (x) . | . . . . . Largest Inventory Capacity 6 | 4 4 4 6 6 Average Capacity 4 | 4 4 4 4 6 Most Carried 4 | 4 4 4 4 1 Average Carried 3 | 3 4 3 3 1 Final Capacity 6 | 4 4 4 6 6 Final Carried 4 | 4 4 4 1 1 Class Distribution -------------------- 94% | Mutant 5% | Scavenger-Mutant Dominant Class ---------------- Mutant | -10/Materials Mutant | -10/Mines Mutant | -9/Materials Mutant | -9/Mines Resources | -11 -10 -10 -9 -9 ----------- Run | Scr Mat Min Mat Min Matter Collected 329 | 261 14 14 40 . Remotely . | . . . . . Salvage Created 389 | 183 67 99 40 . Parts 38 | 21 7 6 4 . Haulers Intercepted . | . . . . . Recyclers Shooed 1 | . 1 . . . Parts Field Recycled . | . . . . . Retrieved Matter . | . . . . . Parts Self-Destructed . | . . . . . Prevented . | . . . . . Kills | -11 -10 -10 -9 -9 ------- Run | Scr Mat Min Mat Min Combat Hostiles Destroyed 7 | . 2 2 3 . Guns 6 | . 1 2 3 . AOE 1 | . 1 . . . Classes Destroyed 4 | 2 1 . 1 . Worker 1 | 1 . . . . Tunneler 8 | 7 . 1 . . Swarmer 3 | . . . 3 . Grunt 4 | . 2 2 . . Best Kill Streak 2 | 2 1 2 2 . Combat Bots Only 2 | . 1 2 2 . Max Kills in Single Turn 2 | 2 1 1 1 . Gunslinging . | . . . . . Exploded 1 | . 1 . . . Melee . | . . . . . Uniques/NPCs Destroyed . | . . . . . Combat | -11 -10 -10 -9 -9 -------- Run | Scr Mat Min Mat Min Damage Taken 1443 | . 256 228 315 644 Core 532 | . 57 67 37 371 Absorbed by Shields . | . . . . . Core Remaining (%) 75 | 100 . 50 . . Volleys Fired 59 | 14 8 17 19 1 Largest 2 | 2 2 2 2 1 Hottest 85 | 70 70 85 85 20 Shots Fired 98 | 28 16 28 25 1 Gun 98 | 28 16 28 25 1 Cannon . | . . . . . Launcher . | . . . . . Special . | . . . . . Kinetic 54 | 14 8 13 18 1 Thermal 44 | 14 8 15 7 . Explosive . | . . . . . Electromagnetic . | . . . . . Robot Hit Streak 14 | 6 9 14 4 4 Robot Miss Streak 4 | 4 1 3 2 . Penetration Max . | . . . . . Secondary Targets 1 | . . 1 . . Max Gunslinging Chain 1 | . . 1 . . Shots Hit Robots 56 | 13 12 15 15 1 Core Hits 35 | 8 2 7 4 14 Critical Hits . | . . . . . Critical Kills . | . . . . . Critical Parts Destroyed . | . . . . . Melee Attacks . | . . . . . Impact . | . . . . . Slashing . | . . . . . Piercing . | . . . . . Sneak Attacks . | . . . . . Combat Hostiles . | . . . . . Follow-up Attacks . | . . . . . Damage Inflicted 729 | 187 143 239 119 41 Guns 567 | 186 15 239 119 8 Cannons . | . . . . . Explosions 128 | . 128 . . . Melee . | . . . . . Ramming 34 | 1 . . . 33 Kinetic 329 | 110 15 107 89 8 Thermal 366 | 76 128 132 30 . Explosive . | . . . . . Electromagnetic . | . . . . . Impact . | . . . . . Slashing . | . . . . . Piercing . | . . . . . Highest Corruption 1 | . . . . 1 Average Corruption 1 | . . . . 1 Corruption Purged . | . . . . . Overload Shots . | . . . . . Overflow Damage 47 | . 47 . . . Projectiles . | . . . . . Explosions 47 | . 47 . . . Melee . | . . . . . Knockbacks . | . . . . . Impact . | . . . . . Kinetic . | . . . . . Secondary . | . . . . . Self-Inflicted Damage 144 | . 136 . . 8 Shots 2 | . 2 . . . Rammed 22 | . . . . 22 Targets Rammed 26 | 1 . . . 25 Kicked 4 | 1 . . . 3 Crushed . | . . . . . Highest Temperature 271 | 27 143 271 106 . Average Temperature 59 | 11 75 90 50 . Received Heat Transfer 411 | . 66 129 9 207 Effects 2 | . . 2 . . Interference 2 | . . 2 . . Siege Activations . | . . . . . Robots Corrupted . | . . . . . Combat Hostiles . | . . . . . Parts Fried . | . . . . . Impact Corruptions . | . . . . . Robots Melted . | . . . . . Combat Hostiles . | . . . . . Parts Melted . | . . . . . Heat Transferred 705 | 222 100 309 74 . Parts Sabotaged . | . . . . . Parts Stolen . | . . . . . Parts Stripped . | . . . . . Power Chain Reactions . | . . . . . Missiles Intercepted . | . . . . . Alert | -11 -10 -10 -9 -9 ------- Run | Scr Mat Min Mat Min Peak Influence 84 | 40 50 84 75 33 Initial 28 | . . 19 18 28 Average 24 | 8 18 59 36 6 Maximum Alert Level . | . . . . . Low Security (%) 100 | 100 100 100 100 100 Level 1 . | . . . . . Level 2 . | . . . . . Level 3 . | . . . . . Level 4 . | . . . . . Level 5 . | . . . . . High Security . | . . . . . Max Security . | . . . . . Squads Dispatched . | . . . . . Investigation . | . . . . . Extermination . | . . . . . Reinforcement . | . . . . . Assault . | . . . . . Garrison . | . . . . . Intercept . | . . . . . Construction Impeded . | . . . . . Haulers Reinforced . | . . . . . Stealth | -11 -10 -10 -9 -9 --------- Run | Scr Mat Min Mat Min Distress Signals . | . . . . . Communications Jammed . | . . . . . Distress Signals . | . . . . . Times Spotted 20 | . 2 8 5 5 Peak Tracking Total 5 | . 2 4 4 5 Tactical Retreats 4 | . . 3 1 . Traps | -11 -10 -10 -9 -9 ------- Run | Scr Mat Min Mat Min Traps Triggered . | . . . . . Indirectly . | . . . . . Trap Hack Attempts . | . . . . . Triggered . | . . . . . Disarmed . | . . . . . Reprogrammed . | . . . . . Reused . | . . . . . Traps Extracted . | . . . . . Installed . | . . . . . Triggered 1 | . . 1 . . Machines | -11 -10 -10 -9 -9 ---------- Run | Scr Mat Min Mat Min Machines Disabled 2 | . 2 . . . Max in Single Turn 2 | . 2 . . . Machines Sabotaged . | . . . . . Garrisons Compromised . | . . . . . Overloaded Fab Kills . | . . . . . Fab Network Shutdowns . | . . . . . Hacking | -11 -10 -10 -9 -9 --------- Run | Scr Mat Min Mat Min Machines Accessed 1 | . . . 1 . Terminals . | . . . . . Fabricators . | . . . . . Repair Stations . | . . . . . Recycling Units . | . . . . . Scanalyzers 1 | . . . 1 . Garrison Access . | . . . . . Total Hacks 2 | . . . 2 . Successful 2 | . . . 2 . Failed . | . . . . . Catastrophic . | . . . . . Database Lockouts . | . . . . . Manual . | . . . . . Terminals . | . . . . . Fabricators . | . . . . . Repair Stations . | . . . . . Recycling Units . | . . . . . Scanalyzers 2 | . . . 2 . Garrison Access . | . . . . . Terminal Hacks . | . . . . . Fabricator Hacks . | . . . . . Repair Station Hacks . | . . . . . Recycling Unit Hacks . | . . . . . Scanalyzer 2 | . . . 2 . Insert Component 1 | . . . 1 . Analyze 1 | . . . 1 . Garrison Access Hacks . | . . . . . Unauthorized Hacks . | . . . . . Terminals . | . . . . . Fabricators . | . . . . . Repair Stations . | . . . . . Recycling Units . | . . . . . Scanalyzers . | . . . . . Garrison Access . | . . . . . Data Cores Recovered . | . . . . . Used . | . . . . . Hacking Detections 1 | . . . 1 . Full Trace Events . | . . . . . Feedback Events . | . . . . . Feedback Blocked . | . . . . . Robot Schematics Acquired . | . . . . . Robots Built . | . . . . . Matter . | . . . . . Time . | . . . . . Total Robot Build Rating . | . . . . . Part Schematics Acquired 1 | . . . 1 . Parts Built . | . . . . . Matter . | . . . . . Time . | . . . . . Total Part Build Rating . | . . . . . Parts Repaired . | . . . . . Time . | . . . . . Parts Recycled . | . . . . . Recycled Matter . | . . . . . Retrieved Matter . | . . . . . Retrieved Components . | . . . . . Parts Scanalyzed 1 | . . . 1 . Part Schematics Acquired 1 | . . . 1 . Parts Damaged . | . . . . . Bothacking | -11 -10 -10 -9 -9 ------------ Run | Scr Mat Min Mat Min Used RIF Installer . | . . . . . Robots Hacked . | . . . . . Non-combat . | . . . . . Combat . | . . . . . Robot Hacks Applied . | . . . . . Relay Couplers Released . | . . . . . Robots Rewired . | . . . . . Allies Hacked . | . . . . . Hacks Repelled . | . . . . . Allies | -11 -10 -10 -9 -9 -------- Run | Scr Mat Min Mat Min Total Allies 3 | . . 3 . . Largest Group 3 | . . 3 . . Highest-Rated Group 40 | . . 40 . . Highest-Rated Ally 16 | . . 16 . . Total Orders . | . . . . . Ally Attacks 12 | . . 12 . . Total Damage 94 | . . 94 . . Kills 1 | . . 1 . . Allies Corrupted . | . . . . . Allies Melted . | . . . . . Intel | -11 -10 -10 -9 -9 ------- Run | Scr Mat Min Mat Min Robot Analysis Total . | . . . . . Derelict Logs Recovered 1 | . . 1 . . Drone Launches . | . . . . . Drone Recoveries . | . . . . . Exploration | -11 -10 -10 -9 -9 ------------- Run | Scr Mat Min Mat Min Turns Passed 1331 | 704 88 307 163 69 Spaces Moved 679 | 286 53 202 99 39 Core 53 | 22 . . . 31 Treads . | . . . . . Legs 626 | 264 53 202 99 8 Wheels . | . . . . . Hover . | . . . . . Flight . | . . . . . Fastest Speed 50 | 50 120 120 120 100 Average Speed 116 | 114 120 120 120 104 Slowest Speed 120 | 120 120 120 120 120 Overloaded Moves . | . . . . . Propulsion Burnouts . | . . . . . Robots Hopped . | . . . . . Cave-ins Triggered . | . . . . . Exploration Rate (%) 16 | 10 9 42 9 13 Regions Visited 4 Branch Regions 2 Pre-discovered Areas . | . . . . . Known Exits Taken . | . . . . . Unknown Exits Taken 4 | 1 1 1 1 . Scrap Searched . | . . . . . Spaces Dug . | . . . . . Terrain Destroyed 39 | . 39 . . . Melee . | . . . . . Projectile . | . . . . . AOE 39 | . 39 . . . Terrain Rammed . | . . . . . Walls Destroyed . | . . . . . Machines Disabled . | . . . . . Actions | -11 -10 -10 -9 -9 --------- Run | Scr Mat Min Mat Min Total 1118 | 633 61 238 121 65 Wait 332 | 319 . 13 . . Move 675 | 285 52 201 98 39 Hop . | . . . . . Pick Up 10 | 8 . 2 . . Fast Attach 6 | 2 1 2 1 . Attach 8 | 4 . 1 3 . Detach . | . . . . . Swap . | . . . . . Drop 2 | . . 2 . . Fire 59 | 14 8 17 19 1 Melee . | . . . . . Ram 16 | . . . . 16 Kick 10 | 1 . . . 9 Crush . | . . . . . Escape Stasis . | . . . . . Rewire . | . . . . . Trap . | . . . . . Miscellaneous . | . . . . . Route ------- -11/Scrapyard -10/Materials -10/Mines -9/Materials (discovered 2 exits: Mat / [*Min]) -9/Mines History --------- Turn | Location | Event 4 | -11/Scrapyard | Discovered new exit (range 14) 705 | -11/Scrapyard | Entered Materials 706 | -10/Materials | Build established: Mutant 770 | -10/Materials | Discovered new exit (range 14) 793 | -10/Materials | Entered Mines 834 | -10/Mines | Learned location of 1 exit from Materials 855 | -10/Mines | Assisted by bots powering up and referring to "LRC-V3" 932 | -10/Mines | Assembled infested the area 1073 | -10/Mines | Discovered new exit (range 7) 1100 | -10/Mines | Entered Materials 1100 | -9/Materials | Evolved 2 slots: Utility x2 1101 | -9/Materials | Identified exit to Materials 1121 | -9/Materials | Discovered new exit (range 9) 1255 | -9/Materials | Lost 3 parts (2n1w) 1263 | -9/Materials | Entered Mines 1269 | -9/Mines | Met a Derelict bent on vengeance 1304 | -9/Mines | Core integrity fell below 50% 1316 | -9/Mines | Lost 5 parts (1p2n1u1w) 1319 | -9/Mines | Core integrity fell below 20% 1332 | -9/Mines | Destroyed by S-10 Pest with Light Assault Rifle Last Messages --------------- 01265_ Slammed into G-34 Mercenary. 01268_ Kicked G-34 Mercenary out of the way. 01269_ Ion Engine destroyed. 01270_ Slammed into G-34 Mercenary. 01272_ Destabilizing: Core damaged (-16). 01274_ Slammed into G-34 Mercenary. 01274_ Seismic Analyzer permanently disabled. 01274_ Destabilizing: Short circuit. 01275_ Kicked G-34 Mercenary out of the way. 01277_ Core Shielding destroyed. 01279_ Aluminum Leg destroyed. 01288_ K-01 Serf collects debris. 01290_ K-01 Serf cleans the Core Extractor. 01291_ K-01 Serf collects debris. 01293_ K-01 Serf cleans the Core Extractor. 01300_ Slammed into S-10 Pest. 01307_ Destabilizing: System corrupted (+1). 01308_ Slammed into G-47 Trooper. 01319_ K-01 Serf collects debris. 01322_ K-01 Serf cleans the Plasma Injector. Map ----- +----------------------------------------------------+ | ?????????????????????????????????????????????????? | | ?????????????????????????????????????????????????? | | ?????????????????????????????????????????????????? | | ?????????????????????????????????????????????????? | | ?????????????????????????????????????????????????? | | ???????????????????????????????##########????????? | | ???????????????????????????????# #????????? | | ???????????????????????????????# #????????? | | ???????????????????????????????# #????????? | | ???????????????????????????????# """ #????????? | | ???????????????????????????????# """ #????????? | | ???????????????????????????????# """ #????????? | | ???????????????????????????????# #????????? | | ???????????????????????????????#### ####????????? | | ??????????????????????????????????# #???????????? | | ??????????????????????????????????# ###### #?? | | ??????????????????????????????????# #??? | | ??????????????????????????????????# ##### #??? | | ??????????????????????????????????# ###???????### | | ?????????????????????????????????## #???????# | | ????????????????????????????????## %######### | | ???????????????????????????????## %%% | | ???????????????????????????????# ########## | | ???????????????????????????????# ##????????# | | ???????????????????????#####???# ##?????????### | | ?????????????????##### # @ ###?## #????????????? | | ?????????????# ##?## #????????????? | | ?????????????????######## s##?# ######???????? | | ????????????????????????## ### #???????? | | ?????????????????????????# sg #### #???????? | | ?????????????????????????## s #???????????? | | ??????????????????????????## #???????????? | | ???????????????????????????##### #???????????? | | ???????????????????????????????## ##???????????? | | ????????????????????????????????#####????????????? | | ?????????????????????????????????????????????????? | | ?????????????????????????????????????????????????? | | ?????????????????????????????????????????????????? | | ?????????????????????????????????????????????????? | | ?????????????????????????????????????????????????? | | ?????????????????????????????????????????????????? | | ?????????????????????????????????????????????????? | | ?????????????????????????????????????????????????? | | ?????????????????????????????????????????????????? | | ?????????????????????????????????????????????????? | | | | | | | | | | | +----------------------------------------------------+ Best States ------------- Heat Dissipation 28 Energy Generation 10 Energy Capacity 250 Matter Stores 300 Matter Capacity 300 Sight Range 16 Terrain Scan Density 60 Core Shielding 20 Evasion (%) 50 Item Schematics ----------------- Aluminum Leg | -9/Materials | Scanalyzed Robot Schematics ------------------ None Fabricated ------------ Nothing Alien Tech Used ----------------- None Achievements -------------- None Challenges ------------ None Game ------ Seed AdvancedCooledTendrils Manual? 0 Play Time 00:10:14 Cumulative 69.7 hours Start 2021.10.27 @ 19:17:28 End 2021.10.27 @ 19:27:42 Sessions 1 Manual Loads 0 Difficulty Rogue Special Mode None Game No. 64 Rogue 64 Adventurer 0 Explorer 0 Win Type - Total 0 Types 0/0/0/0/0/0/0/0/0 Lore% 26 Gallery% 42 Achievement% 26 Wizard Run 0 Options --------- ASCII 0 Keyboard 0 Movement Arrows Keybinds 0 Fullscreen 1 Font 14/Terminus Map View 72x54 Tactical HUD 1 Map Filters NONE Filters NONE Steam 1 RUN: 3132981b-0401-4bcf-9f9c-c1b19f4a1f13